Cogmind - Beta 12 X4 @@@ ROGUE MODE // 2022.12.06 @ 17:54:28 Player: Jezoensis Result: Destroyed by S-10 Pest with Light Assault Rifle Performance ------------- Evolutions (0) 0 Regions Visited (2) 400 Robots Destroyed (23) 115 Value Destroyed (400) 400 Prototype IDs (0) 0 Alien Tech Used (0) 0 Bonus (0) 0 TOTAL SCORE: 915 Bonus ------- None Cogmind --------- Core Integrity 0/250 Matter 255/300 Energy 247/250 System Corruption 0% Temperature Cool (2) Movement Rolling (90) Location -10/Mines Parts ------- > --- POWER (1) -------- Ion Engine > --- PROPULSION (2) --- Wheel Compact Wheel > --- UTILITY (2) ------ Medium Storage Unit Weapon Shielding > --- WEAPON (2) ------- Light Assault Rifle Light Cannon > --- INVENTORY (10) --- Aluminum Leg Compact Wheel Large Storage Unit Structural Scanner Signal Interpreter Seismic Detector Light Assault Rifle Grenade Launcher Rocket Launcher Mining Laser Peak State ------------ > --- POWER ------------ Ion Engine > --- PROPULSION ------- Wheel Compact Wheel > --- UTILITY ---------- Medium Storage Unit Improved Terrain Scanner > --- WEAPON ----------- Light Assault Rifle Light Cannon > --- INVENTORY -------- Aluminum Leg Large Storage Unit Signal Interpreter Seismic Detector Weapon Shielding Light Assault Rifle Grenade Launcher Rocket Launcher Mining Laser [Rating: 10] Favorites ----------- Power Ion Engine Engine Ion Engine Propulsion Aluminum Leg Leg Aluminum Leg Wheel Wheel Utility Medium Storage Unit Device Seismic Detector Storage Medium Storage Unit Processor Improved Targeting Computer Protection Propulsion Shielding Weapon Light Assault Rifle Energy Gun Small Laser Ballistic Gun Light Assault Rifle Ballistic Cannon Light Cannon Launcher Grenade Launcher Special Weapon Mining Laser Build | -11 -10 -10 ------- Run | Scr Mat Min Slots Evolved . | . . . Power . | . . . Propulsion . | . . . Utility . | . . . Weapon . | . . . Parts Attached 38 | 7 16 15 Power 2 | 1 1 . Engine 2 | 1 1 . Core . | . . . Reactor . | . . . Propulsion 9 | 2 1 6 Treads . | . . . Leg 5 | 2 1 2 Wheel 4 | . . 4 Hover . | . . . Flight . | . . . Utility 12 | 2 6 4 Device 5 | 1 2 2 Storage 3 | 1 2 . Processor 1 | . . 1 Hackware . | . . . Protection 3 | . 2 1 Artifact . | . . . Weapon 15 | 2 8 5 Energy Gun 2 | . 2 . Energy Cannon . | . . . Ballistic Gun 8 | 2 4 2 Ballistic Cannon 1 | . . 1 Launcher 3 | . 1 2 Special Weapon 1 | . 1 . Impact Weapon . | . . . Slashing Weapon . | . . . Piercing Weapon . | . . . Special Melee Weapon . | . . . Unidentified Prototypes . | . . . Parts Lost 6 | . 1 5 Power 1 | . 1 . Propulsion 3 | . . 3 Utility 1 | . . 1 Weapon 1 | . . 1 Highest Loss Streak 3 | . 1 3 To Critical Strikes . | . . . Average Slot Usage (%) 96 | . 99 94 Engine 14 | . 14 14 Leg 19 | . 28 12 Wheel 5 | . . 10 Device 10 | . 10 9 Storage 14 | . 14 14 Processor 2 | . . 3 Protection 1 | . 2 . Energy Gun 3 | . 7 . Ballistic Gun 16 | . 20 13 Ballistic Cannon 6 | . . 13 Naked Turns . | . . . Heaviest Build 20 | 13 19 20 Greatest Support 26 | 20 20 26 Greatest Overweight (x) 1 | . . 1 Average Overweight (x) . | . . . Largest Inventory Capacity 10 | 8 10 10 Average Capacity 9 | 5 9 10 Most Carried 10 | 5 10 10 Average Carried 8 | 3 9 8 Final Capacity 10 | 8 10 10 Final Carried 10 | 4 10 10 Class Distribution -------------------- 100% | Mutant Dominant Class ---------------- Mutant | -10/Materials Mutant | -10/Mines Resources | -11 -10 -10 ----------- Run | Scr Mat Min Matter Collected 869 | 318 234 317 Remotely . | . . . Salvage Created 775 | 176 536 63 Parts 41 | 15 21 5 Haulers Intercepted 2 | . 2 . Recyclers Shooed 3 | 1 2 . Parts Field Recycled . | . . . Retrieved Matter . | . . . Parts Self-Destructed . | . . . Prevented . | . . . Kills | -11 -10 -10 ------- Run | Scr Mat Min Combat Hostiles Destroyed 24 | . 7 17 Guns 7 | . 5 2 Cannons 4 | . . 4 AOE 13 | . 2 11 Classes Destroyed 10 | 2 3 5 Worker 1 | . . 1 Builder 1 | . . 1 Tunneler 5 | 5 . . Hauler 2 | . 2 . Recycler 3 | 1 2 . Mechanic 1 | . 1 . Swarmer 2 | . . 2 Grunt 7 | . 7 . Demolisher 1 | . . 1 Assembled 14 | . . 14 Best Kill Streak 12 | 6 4 12 Combat Bots Only 12 | . 3 12 Max Kills in Single Turn 3 | 1 3 3 Gunslinging . | . . . Exploded 3 | . 2 3 Melee . | . . . Uniques/NPCs Destroyed . | . . . Combat | -11 -10 -10 -------- Run | Scr Mat Min Damage Taken 1279 | . 458 821 Core 250 | . 64 186 Absorbed by Shields . | . . . Redirected to Shielding 61 | . 56 5 Core Remaining (%) 100 | 100 . . Volleys Fired 112 | 24 55 33 Largest 2 | 2 2 2 Hottest 100 | 40 100 55 Shots Fired 208 | 48 107 53 Gun 172 | 48 104 20 Cannon 22 | . . 22 Launcher 12 | . 1 11 Special 2 | . 2 . Kinetic 176 | 48 86 42 Thermal 20 | . 20 . Explosive 12 | . 1 11 Electromagnetic . | . . . Robot Hit Streak 13 | 5 13 5 Robot Miss Streak 5 | 5 5 4 Penetration Max . | . . . Secondary Targets . | . . . Shots Hit Robots 125 | 27 70 28 Core Hits 70 | 11 28 31 Critical Kills 1 | . 1 . Critical Parts Destroyed . | . . . Critical Strikes 1 | . 1 . Destroy 1 | . 1 . Melee Attacks . | . . . Impact . | . . . Slashing . | . . . Piercing . | . . . Sneak Attacks . | . . . Combat Hostiles . | . . . Follow-up Attacks . | . . . Damage Inflicted 2214 | 258 681 1275 Guns 930 | 258 590 82 Cannons 223 | . . 223 Explosions 1061 | . 91 970 Melee . | . . . Ramming . | . . . Kinetic 1039 | 258 476 305 Thermal 114 | . 114 . Explosive 1061 | . 91 970 Electromagnetic . | . . . Impact . | . . . Slashing . | . . . Piercing . | . . . Highest Corruption . | . . . Average Corruption . | . . . Corruption Purged . | . . . Corruption Blocked . | . . . Overload Shots . | . . . Overflow Damage 47 | . . 47 Projectiles 2 | . . 2 Explosions 45 | . . 45 Melee . | . . . Knockbacks 2 | . . 2 Impact . | . . . Kinetic 2 | . . 2 Secondary . | . . . Self-Inflicted Damage 118 | . . 118 Shots 6 | . . 6 Rammed . | . . . Targets Rammed . | . . . Kicked . | . . . Crushed . | . . . Highest Temperature 40 | . 40 28 Average Temperature 14 | . 14 12 Received Heat Transfer 275 | . 255 20 Siege Activations . | . . . Robots Corrupted . | . . . Combat Hostiles . | . . . Parts Fried . | . . . Impact Corruptions . | . . . Robots Melted . | . . . Combat Hostiles . | . . . Parts Melted 1 | . 1 . Heat Transferred 250 | . 250 . Parts Sabotaged . | . . . Parts Stolen . | . . . Parts Stripped . | . . . Power Chain Reactions . | . . . Missiles Intercepted . | . . . Alert | -11 -10 -10 ------- Run | Scr Mat Min Peak Influence 239 | 30 239 150 Initial 24 | . 19 24 Average 98 | 10 128 87 Maximum Alert Level 1 | . 1 . Low Security (%) 81 | 100 56 100 Level 1 18 | . 43 . Level 2 . | . . . Level 3 . | . . . Level 4 . | . . . Level 5 . | . . . High Security . | . . . Max Security . | . . . Squads Dispatched 1 | . 1 . Investigation 1 | . 1 . Extermination . | . . . Reinforcement . | . . . Assault . | . . . Garrison . | . . . Intercept . | . . . Searches Triggered . | . . . Construction Impeded . | . . . Haulers Reinforced . | . . . Active Scanning Responses . | . . . Cargo Convoy Interrupts . | . . . Stealth | -11 -10 -10 --------- Run | Scr Mat Min Distress Signals . | . . . Communications Jammed . | . . . Distress Signals . | . . . Times Spotted 32 | . 12 20 Peak Tracking Total 13 | . 3 13 Tactical Retreats . | . . . Traps | -11 -10 -10 ------- Run | Scr Mat Min Traps Triggered 1 | . 1 . Indirectly . | . . . Trap Hack Attempts . | . . . Triggered . | . . . Disarmed . | . . . Reprogrammed . | . . . Reused . | . . . Traps Extracted . | . . . Installed . | . . . Triggered . | . . . Machines | -11 -10 -10 ---------- Run | Scr Mat Min Machines Disabled . | . . . Max in Single Turn . | . . . Machines Sabotaged . | . . . Overloaded Fab Kills . | . . . Hacking | -11 -10 -10 --------- Run | Scr Mat Min Machines Accessed 5 | . 4 1 Terminals 5 | . 4 1 Fabricators . | . . . Repair Stations . | . . . Recycling Units . | . . . Scanalyzers . | . . . Garrison Access . | . . . Total Hacks 25 | . 21 4 Successful 17 | . 14 3 Failed 8 | . 7 1 Catastrophic . | . . . Database Lockouts . | . . . Manual 20 | . 16 4 Terminals 25 | . 21 4 Fabricators . | . . . Repair Stations . | . . . Recycling Units . | . . . Scanalyzers . | . . . Garrison Access . | . . . Terminal Hacks 12 | . 9 3 Part Schematic 1 | . 1 . Robot Analysis 7 | . 5 2 Branch Access Points 2 | . 1 1 Terminal Index 1 | . 1 . Locate Traps 1 | . 1 . Fabricator Hacks . | . . . Repair Station Hacks . | . . . Recycling Unit Hacks . | . . . Scanalyzer . | . . . Garrison Access Hacks . | . . . Unauthorized Hacks 5 | . 5 . Terminals 5 | . 5 . Track 1 | . 1 . Botnet 2 | . 2 . Operators 2 | . 2 . Fabricators . | . . . Repair Stations . | . . . Recycling Units . | . . . Scanalyzers . | . . . Garrison Access . | . . . Data Cores Recovered . | . . . Used . | . . . Hacking Detections 5 | . 4 1 Full Trace Events 1 | . 1 . Feedback Events . | . . . Feedback Blocked . | . . . Robot Schematics Acquired . | . . . Robots Built . | . . . Authchips . | . . . Time . | . . . Total Robot Build Rating . | . . . Part Schematics Acquired 1 | . 1 . Parts Built . | . . . Authchips . | . . . Time . | . . . Total Part Build Rating . | . . . Parts Repaired . | . . . Time . | . . . Parts Recycled . | . . . Recycled Matter . | . . . Retrieved Matter . | . . . Retrieved Components . | . . . Parts Scanalyzed . | . . . Part Schematics Acquired . | . . . Parts Damaged . | . . . Bothacking | -11 -10 -10 ------------ Run | Scr Mat Min Used RIF Installer . | . . . Robots Hacked . | . . . Non-combat . | . . . Combat . | . . . Robot Hacks Applied . | . . . Relay Couplers Released . | . . . Fabnet Peak Effective % . | . . . Robots Rewired . | . . . Allies Hacked . | . . . Hacks Repelled . | . . . Allies | -11 -10 -10 -------- Run | Scr Mat Min Total Allies . | . . . Largest Group . | . . . Highest-Rated Group . | . . . Highest-Rated Ally . | . . . Total Orders . | . . . Ally Attacks . | . . . Total Damage . | . . . Kills . | . . . Allies Corrupted . | . . . Allies Melted . | . . . Intel | -11 -10 -10 ------- Run | Scr Mat Min Robot Analysis Total 7 | . 5 2 Derelict Logs Recovered 1 | . . 1 Drone Launches . | . . . Drone Recoveries . | . . . Exploration | -11 -10 -10 ------------- Run | Scr Mat Min Turns Passed 1146 | 108 492 546 Spaces Moved 669 | 49 253 367 Core 40 | 40 . . Treads . | . . . Legs 444 | 9 253 182 Wheels 185 | . . 185 Hover . | . . . Flight . | . . . Fastest Speed 50 | 50 120 80 Average Speed 115 | 62 120 119 Slowest Speed 190 | 120 120 190 Overloaded Moves . | . . . Propulsion Burnouts . | . . . Robots Hopped . | . . . Cave-ins Triggered . | . . . Exploration Rate (%) 49 | 3 61 84 Regions Visited 2 Branch Regions 1 Pre-discovered Areas 1 | . . 1 Known Exits Taken 1 | . 1 . Unknown Exits Taken 1 | 1 . . Scrap Searched 1 | . . 1 Spaces Dug 11 | . 1 10 Terrain Destroyed 91 | . 4 87 Melee . | . . . Projectile 2 | . 2 . AOE 89 | . 2 87 Terrain Rammed . | . . . Walls Destroyed . | . . . Machines Disabled . | . . . Actions | -11 -10 -10 --------- Run | Scr Mat Min Total 858 | 85 349 424 Wait 8 | . 5 3 Move 667 | 48 252 367 Hop . | . . . Pick Up 19 | 6 11 2 Fast Attach 12 | 5 3 4 Attach 11 | 2 5 4 Detach 3 | . 1 2 Swap 15 | . 8 7 Drop 11 | . 9 2 Fire 112 | 24 55 33 Melee . | . . . Ram . | . . . Kick . | . . . Crush . | . . . Escape Stasis . | . . . Rewire . | . . . Trap . | . . . Miscellaneous . | . . . Route ------- -11/Scrapyard -10/Materials (discovered 2 exits: [*Mat] / *Min) -10/Mines (discovered 2 exits: [*Mat x2]) History --------- Turn | Location | Event 6 | -11/Scrapyard | Discovered new exit (range 15) 109 | -11/Scrapyard | Entered Materials 331 | -10/Materials | Build established: Mutant 445 | -10/Materials | Discovered new exit (range 16) 490 | -10/Materials | Identified exit to Mines 601 | -10/Materials | Entered Mines 602 | -10/Mines | Assembled infested the area 631 | -10/Mines | Core integrity fell below 50% 668 | -10/Mines | Destroyed 12 combat bots 676 | -10/Mines | Lost 3 parts (2n1w) 706 | -10/Mines | Received a Rocket Launcher from a helpful Derelict 867 | -10/Mines | Learned location of Mines (-9) 1008 | -10/Mines | Core integrity fell below 20% 1059 | -10/Mines | Discovered new exit (range 12) 1072 | -10/Mines | Discovered new exit (range 8) 1147 | -10/Mines | Destroyed by S-10 Pest with Light Assault Rifle Last Messages --------------- T-07 Excavator Tier: 1 T-class tunnelers analyze subsurface integrity and open new areas for expansion. >>Analysis(R-06 Scavenger) Downloading analysis... R-06 Scavenger Tier: 1 R-series recyclers collect used, damaged, or unregistered components for recycling and repurposing. To minimize losses during derelict incursions, like most other maintenance robots they are of relatively sturdy construction, but remain somewhat susceptible to electromagnetic damage as such weaponry is not prevalent enough to warrant specialized defenses. >>Access(Branch) No branch access points found. 01097_ Acquired 5 matter. 01133_ S-10 Pest knocked back. 01141_ Destroyed Flight Unit. 01144_ S-10 Pest destroyed. Map ----- +----------------------------------------------------+ | ##T ##?????####% %%=##??#?####??### ###??? | | ### < ##???????##%%% ###????????## ##??? | | ### ##???????##%"!" ##????????## #??? | | ?## """" ##???????## """ ##???????## ## #? | | ?## """" ##???????## "" ##?#????## #### # | | ?## """" ##???????##% =*######### ##?? # | | ?## ##???????###%###########|% ### ## | | ?##########?????#?### #####%*=! ==! ##? | | ?##########????????##%===!! ######= ####?? | | ???????????????????##%########???## ###???? | | ???????????????????##|########????## ##??#### | | ???????????????????## ##??????????## #???# | | ???????????????????## ##?????###### #?## # | | ???????????????????## ##?######### #?# # | | ???????????????????## ####### ## | | ???????????????????## #### ! """??# | | ???????????????????## ### !%* """??# # % % | | ???????????????????## """ ??# | | ???????????????????#### ## """???# # | | ???????????????????#### ###????? ????### ##### | | ?????????????????????## ##?????????????????????? | | ?????????????????????## ##?????????????????????? | | ?????????????????????## ##?????????????????????? | | ?????????????????????## ##?????????????????????? | | ?????????????????????## ##?????????????????????? | | ?????????????????????##@##????????????????????## | | ?????????????????????##s##???????????????????## | | ?????????????????????##%[ ??????????????????# | | ?????????????????????##### ?????????????????# | | ?????????????????????##### #?????????????# | | ???????????????????????????#####?????????????# | | ???????????????????????????#####?????????????# | | ?????????????????????????????????????????????# | | ?????????????????????????????????????????????## | | ??????????????????????????????????????????????# | | ??????????????????????????????????????????????## | | ???????????????????????????????????????????????? | | ???????????????????????????????????????????????? | | ???????????????????????????????????????????????? | | | | | | | | | | | | | | | | | | | | | | | +----------------------------------------------------+ Best States ------------- Heat Dissipation 25 Energy Generation 10 Energy Capacity 250 Matter Stores 300 Matter Capacity 300 Sight Range 16 Terrain Scan Range 16 Terrain Scan Density 10 Propulsion Shielding 33 Weapon Shielding 33 Evasion (%) 55 Targeting Accuracy 6 Item Schematics ----------------- Hcp. Storage Unit | -10/Materials | Hacked Robot Schematics ------------------ None Fabricated ------------ Nothing Alien Tech Used ----------------- None Achievements -------------- None Challenges ------------ None Game ------ Seed TrapAbsorptionInsulator Manual? 0 Play Time 00:17:56 Cumulative 789.1 hours Start 2022.12.06 @ 17:35:10 End 2022.12.06 @ 17:54:28 Sessions 1 Manual Loads 0 Difficulty Rogue Special Mode None Game No. 418 Rogue 291 Adventurer 125 Explorer 2 Win Type - Total 94 Types 78/7/5/1/1/0/0/1/1 Lore% 82 Gallery% 89 Achievement% 79 Wizard Run 0 Options --------- ASCII 0 Keyboard 1 Movement Numpad Keybinds 0 Fullscreen 1 Font 36/TerminusFine Map View 76x50 Tactical HUD 1 Map Filters NONE Filters NONE Steam 1 RUN: 62a78bbf-c543-4e1f-ae46-41b035cde74f